lending/lending_fUSD_20250218
["ID","MTS","AMOUNT","RATE_DAILY","PERIOD"]
[353538593,1739904648571,-500.0,0.00019726,3]
[353538595,1739904648582,-500.0,0.00019726,3]
[353538597,1739904648592,-500.0,0.00019726,3]
[353538599,1739904648602,-500.0,0.00019726,3]
[353538601,1739904648611,-500.0,0.00019726,3]
[353538603,1739904648622,-500.0,0.00019726,3]
[353538605,1739904648633,-500.0,0.00019726,3]
[353538607,1739904648643,-500.0,0.00019726,3]
[353538609,1739904648654,-358.40133605,0.00019726,3]
[353538611,1739904648665,-512.19459123,0.00019726,3]
[353538613,1739904648675,-500.0,0.00019726,3]
[353538615,1739904648686,-500.0,0.00019726,3]
[353538617,1739904648696,-500.0,0.00019726,3]
[353538619,1739904648707,-533.8790347,0.00019726,3]
[353538621,1739904648717,-500.0,0.00019726,3]
[353538623,1739904648727,-500.0,0.00019726,3]
[353538625,1739904648737,-507.65215421,0.00019726,3]
[353538627,1739904648746,-500.0,0.00019726,3]
[353538629,1739904648755,-500.0,0.00019726,3]
[353538631,1739904648766,-500.0,0.00019726,3]
[353538632,1739904648778,-500.0,0.00019726,3]
[353538633,1739904648789,-438.83450636,0.00019726,3]
[353538634,1739904648800,-500.0,0.00019726,3]
[353538635,1739904648811,-500.0,0.00019726,3]
[353538636,1739904648823,-500.0,0.00019726,3]
[353538637,1739904648833,-500.0,0.00019726,3]
[353538638,1739904648843,-500.0,0.00019726,3]
[353538640,1739904648854,-187.60127992,0.00019726,3]
[353538642,1739904648864,-500.0,0.00019726,3]
[353538644,1739904648876,-500.0,0.00019726,3]
[353538646,1739904648886,-500.0,0.00019726,3]
[353538648,1739904648896,-500.0,0.00019726,3]
[353538650,1739904648906,-500.0,0.00019726,3]
[353538651,1739904648916,-500.0,0.00019726,3]
[353538653,1739904648927,-500.0,0.00019726,3]
[353538655,1739904648937,-500.0,0.00019726,3]
[353538657,1739904648947,-500.0,0.00019726,3]
[353538659,1739904648958,-500.0,0.00019726,3]
[353538661,1739904648969,-500.0,0.00019726,3]
[353538663,1739904648979,-505.66328454,0.00019726,3]
[353538665,1739904648988,-1300.45,0.00019726,3]
[353538667,1739904649000,-500.0,0.00019726,3]
[353538669,1739904649010,-500.0,0.00019726,3]
[353538671,1739904649020,-500.0,0.00019726,3]
[353538673,1739904649031,-500.0,0.00019726,3]
[353538675,1739904649042,-500.0,0.00019726,3]
[353538678,1739904649053,-534.71536933,0.00019726,3]
[353538680,1739904649064,-500.0,0.00019726,3]
[353538682,1739904649075,-500.0,0.00019726,3]
[353538683,1739904649085,-500.0,0.00019726,3]
[353538685,1739904649095,-500.0,0.00019726,3]
[353538687,1739904649105,-500.0,0.00019726,3]
[353538689,1739904649115,-500.0,0.00019726,3]
[353538691,1739904649129,-500.0,0.00019726,3]
[353538693,1739904649140,-500.0,0.00019726,3]
[353538695,1739904649151,-500.0,0.00019726,3]
[353538697,1739904649162,-506.64465853,0.00019726,3]
[353538699,1739904649173,-500.0,0.00019726,3]
[353538701,1739904649184,-500.0,0.00019726,3]
[353538703,1739904649194,-500.0,0.00019726,3]
[353538705,1739904649205,-500.0,0.00019726,3]
[353538707,1739904649215,-500.0,0.00019726,3]
[353538709,1739904649226,-500.0,0.00019726,3]
[353538711,1739904649236,-500.0,0.00019726,3]
[353538713,1739904649247,-399.47171903,0.00019726,3]
[353538715,1739904649257,-500.0,0.00019726,3]
[353538718,1739904649268,-500.0,0.00019726,3]
[353538720,1739904649278,-500.0,0.00019726,3]
[353538722,1739904649289,-500.0,0.00019726,3]
[353538724,1739904649299,-500.0,0.00019726,3]
[353538726,1739904649309,-500.0,0.00019726,3]
[353538728,1739904649319,-500.0,0.00019726,3]
[353538729,1739904649329,-500.0,0.00019726,3]
[353538732,1739904649339,-500.0,0.00019726,3]
[353538733,1739904649349,-500.0,0.00019726,3]
[353538736,1739904649359,-500.0,0.00019726,3]
[353538738,1739904649371,-500.0,0.00019726,3]
[353538739,1739904649381,-500.0,0.00019726,3]
[353538741,1739904649391,-551.1684547,0.00019726,3]
[353538744,1739904649401,-500.0,0.00019726,3]
[353538745,1739904649411,-500.0,0.00019726,3]
[353538748,1739904649422,-500.0,0.00019726,3]
[353538749,1739904649431,-500.0,0.00019726,3]
[353538751,1739904649441,-500.0,0.00019726,3]
[353538753,1739904649451,-500.0,0.00019726,3]
[353538756,1739904649462,-500.0,0.00019726,3]
[353538758,1739904649472,-500.0,0.00019726,3]
[353538759,1739904649482,-500.0,0.00019726,3]
[353538761,1739904649492,-500.0,0.00019726,3]
[353538763,1739904649502,-503.8300065,0.00019726,3]
[353538765,1739904649513,-500.0,0.00019726,3]
[353538767,1739904649523,-500.0,0.00019726,3]
[353538768,1739904649532,-500.0,0.00019726,3]
[353538770,1739904649542,-500.0,0.00019726,3]
[353538772,1739904649551,-500.0,0.00019726,3]
[353538773,1739904649561,-500.0,0.00019726,3]
[353538775,1739904649571,-500.0,0.00019726,2]
[353538776,1739904649581,-500.0,0.00019726,3]
[353538778,1739904649591,-747.63,0.00019726,3]
[353538779,1739904649600,-500.0,0.00019726,3]
[353538781,1739904649610,-500.0,0.00019726,3]
[353538783,1739904649621,-500.0,0.00019726,3]
[353538784,1739904649631,-500.0,0.00019726,3]
[353538786,1739904649641,-500.0,0.00019726,3]
[353538788,1739904649652,-500.0,0.00019726,3]
[353538789,1739904649662,-911.47,0.00019726,3]
[353538791,1739904649673,-500.0,0.00019726,3]
[353538793,1739904649683,-500.0,0.00019726,3]
[353538794,1739904649693,-500.0,0.00019726,3]
[353538796,1739904649703,-500.0,0.00019726,3]
[353538798,1739904649713,-614.2,0.00019726,3]
[353538799,1739904649722,-500.0,0.00019726,3]
[353538801,1739904649731,-500.0,0.00019726,3]
[353538803,1739904649741,-500.0,0.00019726,3]
[353538804,1739904649751,-500.0,0.00019726,3]
[353538806,1739904649760,-392.703623,0.00019726,3]
[353538808,1739904649770,-500.0,0.00019726,3]
[353538809,1739904649780,-500.0,0.00019726,3]
[353538811,1739904649795,-500.0,0.00019726,3]
[353538812,1739904649804,-158.723041,0.00019726,3]
[353538814,1739904649814,-500.0,0.00019726,3]
[353538816,1739904649824,-500.0,0.00019726,3]
[353538818,1739904649834,-500.0,0.00019726,3]
[353538820,1739904649843,-500.0,0.00019726,3]
[353538821,1739904649853,-500.0,0.00019726,3]
[353538823,1739904649863,-500.0,0.00019726,3]
[353538825,1739904649874,-500.0,0.00019726,3]
[353538826,1739904649883,-500.0,0.00019726,3]
[353538828,1739904649893,-167.3183574,0.00019773,2]
[353538830,1739904649902,-454.34473033,0.00019773,2]
[353538831,1739904649912,-277.59544782,0.00019773,2]
[353538833,1739904649922,-2364.88485548,0.00019797,2]
[353538835,1739904649932,-900.0,0.000198,7]
[353538837,1739904649941,-2186.75718,0.000198,2]
[353538838,1739904649950,-200.0,0.00019802,30]
[353538840,1739904649959,-150.0,0.00019805,2]
[353538842,1739904649969,-500.0,0.00019807,3]
[353538844,1739904649978,-337.877351,0.00019807,3]
[353538845,1739904649987,-500.0,0.00019807,3]
[353538847,1739904649996,-500.0,0.00019807,3]
[353538849,1739904650006,-500.0,0.00019807,3]
[353538851,1739904650016,-500.0,0.00019807,3]
[353538852,1739904650026,-500.0,0.00019807,3]
[353538854,1739904650035,-500.0,0.00019807,3]
[353538856,1739904650045,-500.0,0.00019807,3]
[353538858,1739904650055,-500.0,0.00019807,3]
[353538860,1739904650065,-557.95,0.00019807,3]
[353538861,1739904650075,-500.0,0.00019807,3]
[353538863,1739904650084,-535.95,0.00019807,3]
[353538865,1739904650095,-778.2,0.00019807,3]
[353538867,1739904650105,-500.0,0.00019807,3]
[353538868,1739904650114,-500.0,0.00019807,3]
[353538870,1739904650125,-500.0,0.00019807,3]
[353538872,1739904650134,-500.0,0.00019807,3]
[353538874,1739904650144,-500.0,0.00019807,3]
[353538875,1739904650156,-500.0,0.00019807,3]
[353538877,1739904650166,-500.0,0.00019807,3]
[353538879,1739904650176,-500.0,0.00019807,3]
[353538881,1739904650186,-500.0,0.00019807,3]
[353538883,1739904650196,-500.0,0.00019807,3]
[353538884,1739904650206,-500.0,0.00019807,3]
[353538886,1739904650216,-500.0,0.00019807,3]
[353538888,1739904650225,-500.0,0.00019807,3]
[353538890,1739904650235,-555.55,0.00019807,3]
[353538891,1739904650245,-1374.65,0.00019808,2]
[353538893,1739904650255,-500.0,0.00019818,2]
[353538895,1739904650265,-224.8,0.00019829,2]
[353538897,1739904650275,-500.0,0.0001984,2]
[353538898,1739904650286,-274.05,0.00019877,30]
[353538900,1739904650296,-416.96859793,0.00019882,2]
[353538902,1739904650306,-200.0,0.00019885,30]
[353538904,1739904650316,-1000.0,0.0001989,2]
[353538906,1739904650326,-15413.0914,0.0001989,2]
[353538907,1739904650335,-500.0,0.00019896,3]
[353538909,1739904650345,-747.63,0.00019896,3]
[353538911,1739904650355,-500.0,0.00019896,3]
[353538913,1739904650365,-500.0,0.00019896,3]
[353538915,1739904650377,-911.47,0.00019896,3]
[353538916,1739904650387,-614.2,0.00019896,3]
[353538917,1739904650397,-500.0,0.00019896,3]
[353538918,1739904650407,-500.0,0.00019896,3]
[353538919,1739904650417,-500.0,0.00019896,3]
[353538920,1739904650427,-500.0,0.00019896,3]
[353538921,1739904650437,-500.0,0.00019896,3]
[353538922,1739904650447,-500.0,0.00019896,3]
[353538923,1739904650457,-500.0,0.00019896,3]
[353538924,1739904650467,-500.0,0.00019896,3]
[353538925,1739904650476,-179.29936977,0.000199,2]
[353538926,1739904650486,-151.4182932,0.000199,2]
[353538928,1739904650495,-3135.42,0.00019907,7]
[353538930,1739904650506,-3135.42,0.00019907,7]
[353538944,1739904650515,-500.0,0.00019918,2]
[353538948,1739904650660,-150.0,0.00019958,2]
[353538950,1739904650670,-79747.9535373,0.0001997,3]
[353538952,1739904650680,-500.0,0.00019973,2]
[353538954,1739904650689,-500.0,0.00019973,2]
[353538956,1739904650699,-66456.6279478,0.00019979,3]
[353538958,1739904650709,-378.48701001,0.00019979,3]
[353538960,1739904650719,-53165.3023582,0.00019979,3]
[353538962,1739904650729,-13291.3255896,0.0001998,3]
[353538964,1739904650739,-1300.45,0.0001998,3]
[353538966,1739904650748,-500.0,0.0001998,3]
[353538968,1739904650757,-500.0,0.0001998,3]
[353538970,1739904650767,-500.0,0.0001998,3]
[353538972,1739904650777,-500.0,0.0001998,3]
[353538974,1739904650791,-500.0,0.0001998,3]
[353538977,1739904650801,-500.0,0.0001998,3]
[353538979,1739904650810,-545.3871759,0.0001998,3]
[353538980,1739904650820,-500.0,0.0001998,3]
[353538983,1739904650830,-500.0,0.0001998,2]
[353538985,1739904650841,-500.0,0.0001998,3]
[353538987,1739904650850,-747.63,0.0001998,3]
[353538989,1739904650860,-500.0,0.0001998,3]
[353538991,1739904650870,-500.0,0.0001998,3]
[353538993,1739904650880,-500.0,0.0001998,3]
[353538995,1739904650890,-500.0,0.0001998,3]
[353538997,1739904650900,-500.0,0.0001998,3]
[353538999,1739904650910,-500.0,0.0001998,3]
[353539001,1739904650919,-911.47,0.0001998,3]
[353539003,1739904650929,-500.0,0.0001998,3]
[353539005,1739904650938,-500.0,0.0001998,3]
[353539006,1739904650947,-291.82460101,0.0001998,3]
[353539008,1739904650957,-500.0,0.0001998,3]
[353539010,1739904650967,-614.2,0.0001998,3]
[353539012,1739904650976,-500.0,0.0001998,3]
[353539015,1739904650986,-500.0,0.0001998,3]
[353539017,1739904650996,-500.0,0.0001998,3]
[353539019,1739904651005,-500.0,0.0001998,3]
[353539020,1739904651015,-392.703623,0.0001998,3]
[353539023,1739904651024,-500.0,0.0001998,3]
[353539025,1739904651035,-500.0,0.0001998,3]
[353539026,1739904651044,-500.0,0.0001998,3]
[353539028,1739904651054,-500.0,0.0001998,3]
[353539030,1739904651063,-500.0,0.0001998,3]
[353539032,1739904651073,-500.0,0.0001998,3]
[353539034,1739904651082,-500.0,0.0001998,3]
[353539036,1739904651091,-488.30066659,0.0001998,3]
[353539038,1739904651101,-500.0,0.0001998,3]
[353539040,1739904651110,-500.0,0.0001998,3]
[353539043,1739904651126,-1926.21,0.00019988,2]
[353539045,1739904651136,-1300.45,0.00019988,3]
[353539046,1739904651146,-500.0,0.00019988,3]
[353539049,1739904651155,-500.0,0.00019988,3]
[353539051,1739904651165,-500.0,0.00019988,3]
[353539052,1739904651175,-500.0,0.00019988,3]
[353539054,1739904651184,-500.0,0.00019988,3]
[353539056,1739904651194,-500.0,0.00019988,3]
[353539059,1739904651206,-500.0,0.00019988,3]
[353539061,1739904651216,-500.0,0.00019988,2]
[353539063,1739904651226,-500.0,0.00019988,3]
[353539065,1739904651236,-747.63,0.00019988,3]
[353539067,1739904651246,-500.0,0.00019988,3]
[353539069,1739904651255,-500.0,0.00019988,3]
[353539071,1739904651265,-500.0,0.00019988,3]
[353539073,1739904651274,-500.0,0.00019988,3]
[353539074,1739904651284,-500.0,0.00019988,3]
[353539076,1739904651294,-500.0,0.00019988,3]
[353539079,1739904651304,-911.47,0.00019988,3]
[353539081,1739904651314,-500.0,0.00019988,3]
[353539083,1739904651323,-500.0,0.00019988,3]
[353539085,1739904651332,-500.0,0.00019988,3]
[353539087,1739904651342,-614.2,0.00019988,3]
[353539089,1739904651352,-500.0,0.00019988,3]
[353539091,1739904651361,-500.0,0.00019988,3]
[353539093,1739904651373,-500.0,0.00019988,3]
[353539095,1739904651382,-500.0,0.00019988,3]
[353539097,1739904651391,-392.703623,0.00019988,3]
[353539099,1739904651401,-500.0,0.00019988,3]
[353539101,1739904651410,-500.0,0.00019988,3]
[353539103,1739904651420,-500.0,0.00019988,3]
[353539104,1739904651429,-500.0,0.00019988,3]
[353539106,1739904651439,-500.0,0.00019988,3]
[353539108,1739904651449,-500.0,0.00019988,3]
[353539110,1739904651458,-500.0,0.00019988,3]
[353539113,1739904651468,-500.0,0.00019988,3]
[353539114,1739904651478,-500.0,0.00019988,3]
[353539117,1739904651488,-13291.3255896,0.00019988,3]
[353539119,1739904651498,-131187.45498854,0.00019989,3]
[353539138,1739904651674,-44517.38766634,0.00019989,3]
[353541007,1739904774367,24978.79183303,0.00020491,120]
[353541008,1739905230700,150.0,0.00020335,120]
[353541012,1739905590750,150.0,0.00020377,120]
[353541061,1739905770695,150.0,0.00020212,120]
[353541065,1739905832187,-153.61,0.00013699,2]
[353541066,1739905832198,-200.0,0.00015068,2]
[353541067,1739905832211,-200.0,0.00015095,2]
[353541068,1739905832221,-200.0,0.00016021,2]
[353541069,1739905832231,-374.3168,0.00016492,2]
[353541070,1739905832346,-150.3932,0.00016492,2]
[353541071,1739905832356,-678.71507305,0.000165,5]
[353541072,1739905832401,-1411.25,0.000165,5]
[353541073,1739905832455,-3462.03492695,0.000165,5]
[353541074,1739905832465,-176.46,0.00016712,2]
[353541075,1739905832475,-150.0,0.00018,2]
[353541076,1739905832484,-1000.0,0.00018047,2]
[353541077,1739905832494,-736.91,0.000181,2]
[353541078,1739905832503,-1500.0,0.00018121,2]
[353541080,1739905832512,-150.0,0.00018159,2]
[353541082,1739905832523,-517.16,0.0001821,2]
[353541084,1739905832532,-943.42,0.0001821,2]
[353541085,1739905832542,-2000.0,0.00018273,2]
[353541086,1739905832551,-246.64,0.00018284,30]
[353541087,1739905832563,-500.0,0.00018309,2]
[353541089,1739905832573,-250.0,0.00018309,2]
[353541091,1739905832582,-162.5,0.00018404,2]
[353541093,1739905832591,-422.98,0.00018568,2]
[353541095,1739905832601,-456.32,0.00018584,2]
[353541097,1739905832610,-1371.39,0.00018639,2]
[353541099,1739905832620,-1624.948,0.000187,2]
[353541101,1739905832628,-154.359,0.000187,2]
[353541103,1739905832638,-150.0,0.00018701,2]
[353541105,1739905832647,-151.0,0.00018722,2]
[353541107,1739905832656,-4641.87807305,0.00018734,2]
[353541166,1739905837967,-288.40221205,0.00018734,2]
[353541167,1739905838021,-3894.75905496,0.00018734,2]
[353541168,1739905838033,-13198.0,0.00018734,2]
[353541169,1739905838076,-1876.96065994,0.00018734,2]
[353541170,1739905838086,-524.71,0.00018756,2]
[353541171,1739905838095,-271.35,0.00018841,2]
[353541172,1739905838104,-1073.21934006,0.00018913,2]
[353541173,1739905838391,-214.50065994,0.00018913,2]
[353541174,1739905838402,-70.24484469,0.0001898,2]
[353541175,1739905838414,-79.75515531,0.0001898,2]
[353541176,1739905838423,-2131.43056076,0.00019,3]
[353541177,1739905838445,-2703.98176007,0.00019,3]
[353541349,1739905840288,-360.63184,0.000138,2]
[353541351,1739905840298,-360.63184,0.000155,2]
[353541353,1739905840307,-360.63184,0.000172,2]
[353541356,1739905840318,-69100.63410621,0.00019,3]
[353541357,1739905840328,-1255.52499779,0.000191,2]
[353541359,1739905840339,-1000.0,0.00019178,7]
[353541361,1739905840349,-200.0,0.000192,2]
[353541363,1739905840358,-154.58,0.00019212,2]
[353541365,1739905840369,-150.0,0.00019243,2]
[353541367,1739905840378,-914.04,0.00019301,2]
[353541369,1739905840387,-155.676253,0.00019331,3]
[353541371,1739905840401,-2351.56,0.00019359,7]
[353541373,1739905840410,-2351.56,0.00019359,7]
[353541375,1739905840420,-2351.56,0.00019359,7]
[353541377,1739905840430,-2351.56,0.00019359,7]
[353541379,1739905840439,-1000.0,0.000194,2]
[353541381,1739905840448,-1000.0,0.00019452,7]
[353541383,1739905840458,-800.0,0.000195,2]
[353541385,1739905840467,-800.0,0.000195,2]
[353541386,1739905840476,-800.0,0.000195,2]
[353541387,1739905840486,-800.0,0.000195,2]
[353541388,1739905840496,-800.0,0.000195,2]
[353541389,1739905840506,-800.0,0.000195,2]
[353541390,1739905840515,-800.0,0.000195,2]
[353541391,1739905840525,-800.0,0.000195,2]
[353541392,1739905840534,-800.0,0.000195,2]
[353541393,1739905840543,-800.0,0.000195,2]
[353541394,1739905840554,-800.0,0.000195,2]
[353541395,1739905840564,-800.0,0.000195,2]
[353541396,1739905840576,-800.0,0.000195,2]
[353541397,1739905840585,-800.0,0.000195,2]
[353541398,1739905840594,-500.0,0.000195,2]
[353541399,1739905840604,-500.0,0.000195,2]
[353541400,1739905840613,-500.0,0.000195,2]
[353541401,1739905840623,-500.0,0.000195,2]
[353541402,1739905840632,-500.0,0.000195,2]
[353541403,1739905840642,-500.0,0.000195,2]
[353541404,1739905840652,-500.0,0.000195,2]
[353541405,1739905840662,-500.0,0.000195,2]
[353541406,1739905840672,-500.0,0.000195,2]
[353541407,1739905840681,-500.0,0.000195,2]
[353541408,1739905840691,-500.0,0.000195,2]
[353541409,1739905840701,-500.0,0.000195,2]
[353541410,1739905840710,-500.0,0.000195,2]
[353541411,1739905840719,-500.0,0.000195,2]
[353541412,1739905840729,-500.0,0.000195,2]
[353541413,1739905840739,-500.0,0.000195,2]
[353541414,1739905840748,-500.0,0.000195,2]
[353541415,1739905840758,-500.0,0.000195,2]
[353541416,1739905840768,-500.0,0.000195,2]
[353541418,1739905840778,-500.0,0.000195,2]
[353541420,1739905840788,-700.0,0.000195,2]
[353541422,1739905840797,-500.0,0.000195,2]
[353541424,1739905840806,-500.0,0.000195,2]
[353541426,1739905840819,-500.0,0.000195,2]
[353541428,1739905840829,-500.0,0.000195,2]
[353541430,1739905840839,-500.0,0.000195,2]
[353541432,1739905840848,-500.0,0.000195,2]
[353541434,1739905840858,-500.0,0.000195,2]
[353541436,1739905840868,-500.0,0.000195,2]
[353541438,1739905840877,-500.0,0.000195,2]
[353541440,1739905840887,-500.0,0.000195,2]
[353541442,1739905840897,-500.0,0.000195,2]
[353541444,1739905840906,-500.0,0.000195,2]
[353541446,1739905840916,-500.0,0.000195,2]
[353541448,1739905840927,-500.0,0.000195,2]
[353541449,1739905840937,-500.0,0.000195,2]
[353541450,1739905840946,-500.0,0.000195,2]
[353541451,1739905840956,-573.1323,0.00019526,2]
[353541452,1739905840965,-1000.0,0.00019526,2]
[353541453,1739905840975,-1250.0,0.00019529,2]
[353541454,1739905840984,-775.89,0.00019534,2]
[353541455,1739905840994,-440.17,0.00019534,2]
[353541456,1739905841003,-440.17,0.00019534,2]
[353541457,1739905841013,-775.89,0.00019534,2]
[353541458,1739905841023,-585.91,0.00019534,2]
[353541459,1739905841032,-440.17,0.00019534,2]
[353541460,1739905841042,-440.17,0.00019534,2]
[353541461,1739905841053,-2539.89,0.00019547,2]
[353541462,1739905841062,-414.2250831,0.00019599,2]
[353541463,1739905841076,-152.0,0.00019621,3]
[353541464,1739905841086,-338.23276,0.00019627,7]
[353541465,1739905841095,-2351.56,0.00019633,7]
[353541466,1739905841106,-2351.56,0.00019633,7]
[353541468,1739905841116,-209.23,0.00019671,2]
[353541470,1739905841125,-376.4,0.00019671,2]
[353541471,1739905841135,-999.37,0.00019671,2]
[353541473,1739905841144,-150.0,0.00019671,2]
[353541475,1739905841154,-300.0,0.00019671,2]
[353541477,1739905841163,-150.0,0.00019671,2]
[353541479,1739905841172,-150.0,0.00019671,2]
[353541481,1739905841182,-152.38,0.00019671,2]
[353541483,1739905841192,-300.0,0.00019679,2]
[353541485,1739905841204,-18755.04413444,0.00019716,3]
[353541487,1739905841217,-281.166,0.00019716,3]
[353541490,1739905841231,-478.4754975,0.00019716,3]
[353541492,1739905841243,-469.469,0.00019716,3]
[353541495,1739905841263,-5646.71895216,0.00019716,3]
[353541497,1739905841272,-500.0,0.00019726,3]
[353541499,1739905841281,-500.0,0.00019726,3]
[353541501,1739905841291,-500.0,0.00019726,3]
[353541503,1739905841300,-500.0,0.00019726,3]
[353541505,1739905841309,-500.0,0.00019726,3]
[353541506,1739905841321,-512.03459044,0.00019726,3]
[353541508,1739905841331,-579.62629708,0.00019726,3]
[353541510,1739905841341,-522.66919052,0.00019726,3]
[353541512,1739905841350,-500.0,0.00019726,3]
[353541514,1739905841360,-500.0,0.00019726,3]
[353541516,1739905841370,-500.0,0.00019726,3]
[353541518,1739905841380,-500.0,0.00019726,3]
[353541520,1739905841390,-500.0,0.00019726,3]
[353541522,1739905841400,-500.0,0.00019726,3]
[353541524,1739905841410,-500.0,0.00019726,3]
[353541526,1739905841420,-505.46749097,0.00019726,3]
[353541528,1739905841429,-500.0,0.00019726,3]
[353541530,1739905841439,-527.13026115,0.00019726,3]
[353541532,1739905841448,-500.0,0.00019726,3]
[353541534,1739905841457,-500.0,0.00019726,3]
[353541536,1739905841467,-500.0,0.00019726,3]
[353541538,1739905841476,-500.0,0.00019726,3]
[353541539,1739905841485,-500.0,0.00019726,2]
[353541540,1739905841494,-507.73304029,0.00019726,3]
[353541541,1739905841505,-305.98594797,0.00019726,3]
[353541542,1739905841514,-504.80667227,0.00019726,3]
[353541543,1739905841523,-500.0,0.00019726,3]
[353541544,1739905841532,-500.0,0.00019726,3]
[353541545,1739905841541,-500.0,0.00019726,3]
[353541546,1739905841550,-500.0,0.00019726,3]
[353541547,1739905841560,-500.0,0.00019726,3]
[353541548,1739905841571,-500.0,0.00019726,3]
[353541549,1739905841580,-501.08,0.00019726,3]
[353541550,1739905841589,-500.0,0.00019726,3]
[353541552,1739905841598,-506.25916753,0.00019726,3]
[353541553,1739905841608,-518.45642061,0.00019726,3]
[353541555,1739905841618,-500.0,0.00019726,3]
[353541557,1739905841628,-266.24747035,0.00019726,3]
[353541559,1739905841637,-500.0,0.00019726,3]
[353541561,1739905841647,-500.0,0.00019726,3]
[353541563,1739905841656,-500.0,0.00019726,3]
[353541581,1739905841822,-437.59642659,0.00019726,3]
[353541583,1739905841831,-500.0,0.00019726,3]
[353541585,1739905841841,-500.0,0.00019726,3]
[353541587,1739905841850,-500.0,0.00019726,3]
[353541589,1739905841859,-500.0,0.00019726,3]
[353541591,1739905841868,-500.0,0.00019726,3]
[353541593,1739905841878,-500.0,0.00019726,3]
[353541595,1739905841888,-501.90889677,0.00019726,3]
[353541597,1739905841897,-500.0,0.00019726,3]
[353541599,1739905841907,-500.0,0.00019726,3]
[353541601,1739905841916,-500.0,0.00019726,3]
[353541603,1739905841926,-500.0,0.00019726,3]
[353541605,1739905841935,-500.0,0.00019726,3]
[353541607,1739905841945,-500.0,0.00019726,3]
[353541609,1739905841954,-500.0,0.00019726,3]
[353541611,1739905841963,-500.0,0.00019726,3]
[353541613,1739905841972,-500.0,0.00019726,3]
[353541615,1739905841981,-500.0,0.00019726,3]
[353541617,1739905841992,-500.0,0.00019726,3]
[353541619,1739905842001,-500.0,0.00019726,3]
[353541621,1739905842010,-300.86529141,0.00019726,3]
[353541623,1739905842019,-500.0,0.00019726,3]
[353541625,1739905842027,-500.0,0.00019726,3]
[353541627,1739905842037,-500.0,0.00019726,3]
[353541629,1739905842046,-500.0,0.00019726,3]
[353541631,1739905842055,-500.0,0.00019726,2]
[353541633,1739905842064,-1137.89,0.00019726,3]
[353541635,1739905842075,-500.0,0.00019726,3]
[353541637,1739905842085,-500.0,0.00019726,3]
[353541639,1739905842094,-500.0,0.00019726,3]
[353541641,1739905842103,-500.0,0.00019726,3]
[353541643,1739905842112,-500.0,0.00019726,3]
[353541645,1739905842121,-500.0,0.00019726,3]
[353541647,1739905842131,-205.27398699,0.00019726,3]
[353541649,1739905842141,-509.21836136,0.00019726,3]
[353541651,1739905842150,-500.0,0.00019726,3]